{"text_format":"3","workbook":"xlsx","n_sheets":3,"sheets":["Student List","Class Roster","Student Details"],"not_rendered":{"images":2,"defined_names":8},"read":"whole","date_system":"1900"}

{"sheet":"Student List","index":0,"n_rows":8,"n_cols":13,"rows_kept":8,"merged":[[1,2,2,3],[1,4,1,11],[2,4,2,11],[6,12,8,16]]}
[]
[null,null,"Mokinių sąrašas",null,"EITI Į KLASĖS TVARKARAŠTĮ"]
[{"$nulls":4},"EITI Į MOKINIO DUOMENIS"]
[null,null,"MOKINIO VARDAS","EL. PAŠTAS","NAMŲ TELEFONAS","MOBILUSIS TELEFONAS","GIMIMO DATA","SKUBIOS PAGALBOS KONTAKTAS","SKUBIOS PAGALBOS TELEFONAS","GYDYTOJAS","GYDYTOJO TELEFONO NUMERIS","  "]
[null,null,"1 vardas","El. pašto adresas","Laidinio telefono nr.","Mobilusis telefonas","Data","1 kontaktas:","Skubios pagalbos telefonas","1 gydytojas","Gydytojo telefono numeris"]
[null,null,"2 vardas","El. pašto adresas","Laidinio telefono nr.","Mobilusis telefonas","Data","2 kontaktas","Skubios pagalbos telefonas","2 gydytojas","Gydytojo telefono numeris"]
[null,null,"3 vardas","El. pašto adresas","Laidinio telefono nr.","Mobilusis telefonas","Data","3 kontaktas","Skubios pagalbos telefonas","3 gydytojas","Gydytojo telefono numeris",null,"Patarimas. Norėdami įtraukti daugiau mokinių, paskutiniame lentelės langelyje paspauskite Tab klavišą."]
[null,null,"4 vardas","El. pašto adresas","Laidinio telefono nr.","Mobilusis telefonas","Data","4 kontaktas","Skubios pagalbos telefonas","4 gydytojas","Gydytojo telefono numeris"]

{"sheet":"Class Roster","index":1,"n_rows":12,"n_cols":7,"rows_kept":12,"merged":[[1,2,2,2],[1,3,2,3],[1,4,1,6],[2,4,2,6]]}
[]
[null,null,"Klasės tvarkaraštis","Grafikos dizaino institutas","EITI Į MOKINIŲ SĄRAŠĄ"]
[{"$nulls":4},"EITI Į MOKINIO DUOMENIS"]
[null,null,"KURSAS","Kurso pavadinimas","PRADŽIOS DATA","Data"]
[null,null,"DĖSTYTOJAS (-A)","1 dėstytojas","PABAIGOS DATA","Data"]
[null,null,"UŽSIREGISTRAVO MOKINIŲ",{"$f":"COUNTA(StudentRoster[MOKINIO VARDAS])","v":4}]
[]
[null,null,"MOKINIO VARDAS","EL. PAŠTAS","NAMŲ TELEFONAS","MOBILUSIS TELEFONAS","  "]
[null,null,"1 vardas",{"$f":"IFERROR(VLOOKUP(StudentRoster[[#This Row],[STUDENT NAME]],Students[],2),\"\")","v":"Email address"},{"$f":"IFERROR(VLOOKUP(StudentRoster[[#This Row],[STUDENT NAME]],Students[],3),\"\")","v":"Home phone"},{"$f":"IFERROR(VLOOKUP(StudentRoster[[#This Row],[STUDENT NAME]],Students[],4),\"\")","v":"Cell phone"}]
[null,null,"2 vardas",{"$f":"IFERROR(VLOOKUP(StudentRoster[[#This Row],[STUDENT NAME]],Students[],2),\"\")","v":"Email address"},{"$f":"IFERROR(VLOOKUP(StudentRoster[[#This Row],[STUDENT NAME]],Students[],3),\"\")","v":"Home phone"},{"$f":"IFERROR(VLOOKUP(StudentRoster[[#This Row],[STUDENT NAME]],Students[],4),\"\")","v":"Cell phone"}]
[null,null,"3 vardas",{"$f":"IFERROR(VLOOKUP(StudentRoster[[#This Row],[STUDENT NAME]],Students[],2),\"\")","v":"Email address"},{"$f":"IFERROR(VLOOKUP(StudentRoster[[#This Row],[STUDENT NAME]],Students[],3),\"\")","v":"Home phone"},{"$f":"IFERROR(VLOOKUP(StudentRoster[[#This Row],[STUDENT NAME]],Students[],4),\"\")","v":"Cell phone"}]
[null,null,"4 vardas",{"$f":"IFERROR(VLOOKUP(StudentRoster[[#This Row],[STUDENT NAME]],Students[],2),\"\")","v":"Email address"},{"$f":"IFERROR(VLOOKUP(StudentRoster[[#This Row],[STUDENT NAME]],Students[],3),\"\")","v":"Home phone"},{"$f":"IFERROR(VLOOKUP(StudentRoster[[#This Row],[STUDENT NAME]],Students[],4),\"\")","v":"Cell phone"}]

{"sheet":"Student Details","index":2,"n_rows":13,"n_cols":4,"rows_kept":13,"merged":[[1,2,2,2],[1,3,1,4],[2,3,2,4],[3,2,3,3]]}
[]
[null,null,"Mokinio duomenys","EITI Į MOKINIŲ SĄRAŠĄ"]
[{"$nulls":3},"EITI Į KLASĖS TVARKARAŠTĮ"]
[null,null,"PATARIMAS. PASIRINKITE MOKINĮ IŠ IŠPLEČIAMOJO SĄRAŠO LANGELYJE D5, KAD ATNAUJINTUMĖTE MOKINIO INFORMACIJĄ"]
[null,null,"MOKINIO VARDAS","1 vardas"]
[null,null,"EL. PAŠTAS",{"$f":"IFERROR(VLOOKUP(StudentName,Students[],2,FALSE),\"\")","v":"Email address"}]
[null,null,"NAMŲ TELEFONAS",{"$f":"IFERROR(VLOOKUP(StudentName,Students[],3,FALSE),\"\")","v":"Home phone"}]
[null,null,"MOBILUSIS TELEFONAS",{"$f":"IFERROR(VLOOKUP(StudentName,Students[],4,FALSE),\"\")","v":"Cell phone"}]
[null,null,"GIMIMO DATA",{"$f":"IFERROR(VLOOKUP(StudentName,Students[],5,FALSE),\"\")","v":"Date"}]
[null,null,"SKUBIOS PAGALBOS KONTAKTAS",{"$f":"IFERROR(VLOOKUP(StudentName,Students[],6,FALSE),\"\")","v":"Contact 1"}]
[null,null,"SKUBIOS PAGALBOS TELEFONAS",{"$f":"IFERROR(VLOOKUP(StudentName,Students[],7,FALSE),\"\")","v":"Emergency phone"}]
[null,null,"GYDYTOJAS",{"$f":"IFERROR(VLOOKUP(StudentName,Students[],8,FALSE),\"\")","v":"Physician 1"}]
[null,null,"GYDYTOJO TELEFONO NUMERIS",{"$f":"IFERROR(VLOOKUP(StudentName,Students[],9,FALSE),\"\")","v":"Physician phone"}]